bitfinex-derivatives/quotes_BTCF0:USTF0_20241122
["timestamp","ask_amount","ask_price","bid_price","bid_amount"]
[1732260885562,0.4556,99291.0,99286.0,4e-05]
[1732260886464,0.4556,99291.0,99290.0,0.050299]
[1732260887978,0.4556,99295.0,99290.0,0.050299]
[1732260888175,0.4556,99295.0,99286.0,4e-05]
[1732260888482,0.4556,99295.0,99294.0,4e-05]
[1732260888869,0.4556,99295.0,99294.0,0.050337]
[1732260889373,0.4556,99295.0,99294.0,4e-05]
[1732260890573,0.505897,99295.0,99294.0,4e-05]
[1732260890877,0.588997,99295.0,99294.0,4e-05]
[1732260891280,0.5387,99295.0,99294.0,4e-05]
[1732260891478,0.51855638,99295.0,99294.0,4e-05]
[1732260891779,0.43545638,99295.0,99294.0,4e-05]
[1732260892873,0.43545638,99295.0,99279.0,0.3608]
[1732260892874,0.050304,99282.0,99272.0,0.02010593]
[1732260893070,0.0792,99281.0,99272.0,0.02010593]
[1732260893271,0.0101,99288.0,99276.0,0.050306]
[1732260893481,0.0792,99291.0,99278.0,0.12642205]
[1732260893680,0.129499,99291.0,99287.0,4e-05]
[1732260893983,0.0503,99288.0,99287.0,4e-05]
[1732260894985,0.0792,99291.0,99287.0,4e-05]
[1732260895376,0.129499,99291.0,99290.0,4e-05]
[1732260896979,0.41591639,99295.0,99290.0,4e-05]
[1732260896980,0.00056001,99295.0,99290.0,4e-05]
[1732260897176,0.1101,99300.0,99290.0,4e-05]
[1732260897377,0.1,99300.0,99294.0,4e-05]
[1732260897575,0.1,99300.0,99298.0,4e-05]
[1732260898183,0.128995,99299.0,99298.0,4e-05]
[1732260903186,0.866615,99299.0,99287.0,4e-05]
[1732260903491,0.050306,99277.0,99270.0,0.00508572]
[1732260903677,0.050309,99271.0,99270.0,0.00508572]
[1732260903880,0.050309,99271.0,99261.0,0.411114]
[1732260903881,0.0851,99276.0,99271.0,0.050309]
[1732260904280,0.0851,99276.0,99275.0,4e-05]
[1732260905582,0.135406,99276.0,99275.0,4e-05]
[1732260907292,0.496206,99276.0,99275.0,4e-05]
[1732260908188,0.135406,99276.0,99275.0,4e-05]
[1732260909189,0.873106,99276.0,99275.0,4e-05]
[1732260910292,0.788006,99276.0,99275.0,4e-05]
[1732260910687,0.485806,99276.0,99275.0,4e-05]
[1732260911288,0.564806,99276.0,99275.0,4e-05]
[1732260913203,0.867006,99276.0,99275.0,4e-05]
[1732260913400,0.867006,99276.0,99256.0,0.3608]
[1732260913696,0.050313,99264.0,99258.0,0.050315]
[1732260913902,0.050313,99264.0,99256.0,0.36581931]
[1732260914085,0.050313,99263.0,99259.0,0.050315]
[1732260914284,0.00020001,99257.0,99256.0,0.36581931]
[1732260914795,0.00020001,99257.0,99256.0,0.41613531]
[1732260915590,0.00020001,99257.0,99256.0,0.36581931]
[1732260915992,0.83578001,99257.0,99256.0,0.002]
[1732260916191,0.83578001,99257.0,99243.0,0.0047]
[1732260916398,0.050321,99248.0,99234.0,0.0047]
[1732260916591,0.050324,99241.0,99232.0,0.02010908]
[1732260916896,0.050325,99239.0,99232.0,0.02010908]
[1732260917093,0.00020001,99233.0,99232.0,0.02010908]
[1732260917700,0.3796437,99240.0,99232.0,0.03338802]
[1732260918001,0.37912369,99240.0,99239.0,4e-05]
[1732260918598,0.42944769,99240.0,99239.0,4e-05]
[1732260919299,0.42944769,99240.0,99239.0,0.00104]
[1732260920487,0.42944769,99240.0,99239.0,0.00304]
[1732260921088,0.37304769,99240.0,99239.0,0.00304]
[1732260925202,0.62500369,99240.0,99214.0,0.162]
[1732260925398,0.12642205,99228.0,99219.0,0.050335]
[1732260925601,0.32272369,99227.0,99219.0,0.050335]
[1732260926199,0.32272369,99227.0,99205.0,0.0047]
[1732260926400,0.12642205,99228.0,99205.0,0.0047]
[1732260926401,0.48362369,99226.0,99205.0,0.0047]
[1732260926605,0.050332,99225.0,99205.0,0.0047]
[1732260926795,0.050332,99225.0,99218.0,0.002]
[1732260927105,0.48362369,99226.0,99218.0,0.002]
[1732260927503,0.48362369,99226.0,99212.0,0.07045384]
[1732260927504,0.53395569,99226.0,99225.0,4e-05]
[1732260927909,0.94027569,99226.0,99225.0,4e-05]
[1732260928205,0.88994369,99226.0,99225.0,4e-05]
[1732260928406,0.42668369,99226.0,99225.0,4e-05]
[1732260928609,0.32372369,99226.0,99225.0,0.050372]
[1732260928807,0.32372369,99226.0,99225.0,4e-05]
[1732260929112,0.32272369,99226.0,99225.0,0.050372]
[1732260929300,0.32372369,99226.0,99225.0,4e-05]
[1732260929711,0.32372369,99226.0,99225.0,0.050372]
[1732260930411,0.0101,99236.0,99235.0,0.050327]
[1732260930598,0.0101,99248.0,99235.0,0.3608]
[1732260930798,0.12642205,99250.0,99235.0,0.3608]
[1732260930799,0.215,99247.0,99243.0,0.3608]
[1732260931005,1e-08,99256.0,99248.0,0.05032]
[1732260931213,1e-08,99256.0,99255.0,0.411117]
[1732260931403,1e-08,99256.0,99255.0,0.515077]
[1732260931597,1e-08,99256.0,99255.0,1.117317]
[1732260932003,0.0023,99272.0,99271.0,0.050309]
[1732260932307,0.0023,99288.0,99271.0,0.72164]
[1732260932517,0.06220415,99295.0,99286.0,0.3608]
[1732260932716,0.06220415,99295.0,99287.0,4e-05]
[1732260933006,0.22642205,99300.0,99294.0,4e-05]
[1732260933423,0.22642205,99300.0,99299.0,4e-05]
[1732260933607,0.1,99300.0,99299.0,4e-05]
[1732260934519,0.101,99300.0,99299.0,4e-05]
[1732260936505,0.1,99300.0,99299.0,4e-05]
[1732260936706,0.101,99300.0,99299.0,4e-05]
[1732260936906,0.4618,99300.0,99299.0,4e-05]
[1732260937110,0.56572,99300.0,99299.0,4e-05]
[1732260937310,0.56472,99300.0,99299.0,4e-05]
[1732260937617,0.86784,99300.0,99299.0,4e-05]
[1732260938909,0.56572,99300.0,99299.0,4e-05]
[1732260939416,0.86784,99300.0,99299.0,4e-05]
[1732260940118,0.56572,99300.0,99299.0,4e-05]
[1732260942913,0.050304,99280.0,99279.0,0.0047]
[1732260943121,0.050304,99280.0,99271.0,0.411109]
[1732260943122,0.050307,99276.0,99271.0,0.411109]
[1732260943305,0.050308,99273.0,99271.0,0.3608]
[1732260943616,0.050308,99272.0,99255.0,0.0047]
[1732260943914,8e-05,99256.0,99255.0,0.3608]
[1732260944113,8e-05,99256.0,99243.0,0.3608]
[1732260944314,8e-05,99256.0,99255.0,0.050317]
[1732260944618,0.12642205,99265.0,99258.0,0.050315]
[1732260944811,0.12642205,99265.0,99260.0,0.3608]
[1732260945004,0.12642205,99270.0,99264.0,4e-05]
[1732260945413,0.12642205,99270.0,99269.0,4e-05]
[1732260945812,0.17673105,99270.0,99269.0,4e-05]
[1732260946207,0.050309,99270.0,99269.0,4e-05]
[1732260946914,0.001,99270.0,99269.0,4e-05]
[1732260949314,0.001,99270.0,99269.0,0.71335]
[1732260949917,0.001,99270.0,99269.0,0.41115]
[1732260950125,0.001,99270.0,99269.0,0.36084]
[1732260956429,8e-05,99280.0,99277.0,0.050305]
[1732260956627,8e-05,99280.0,99279.0,0.411105]
[1732260956824,0.0023,99296.0,99279.0,0.411145]
[1732260957027,0.050296,99297.0,99279.0,0.36084]
[1732260957328,0.22642205,99300.0,99296.0,4e-05]
[1732260957727,0.1,99300.0,99299.0,4e-05]
[1732260958619,0.3608,99320.0,99299.0,4e-05]
[1732260959022,0.050284,99319.0,99301.0,0.050293]
[1732260959222,0.050286,99317.0,99301.0,0.050293]
[1732260959620,0.12642205,99311.0,99301.0,0.050293]
[1732260960118,0.12642205,99311.0,99298.0,0.3608]
[1732260960323,0.12642205,99311.0,99292.0,0.0101]
[1732260960324,0.3608,99304.0,99292.0,0.0101]
[1732260960518,0.12642205,99300.0,99287.0,0.0101]
[1732260960722,0.12642205,99300.0,99284.0,0.050302]
[1732260961025,4e-05,99285.0,99284.0,0.050302]
[1732260961729,0.0023,99301.0,99285.0,0.050301]
[1732260962030,0.0023,99308.0,99301.0,0.050294]
[1732260962234,0.13112205,99310.0,99301.0,0.050294]
[1732260962235,0.12642205,99310.0,99301.0,0.050294]
[1732260962523,0.12642205,99310.0,99307.0,4e-05]
[1732260962716,0.12642205,99310.0,99309.0,4e-05]
[1732260964729,0.12742205,99310.0,99309.0,4e-05]
[1732260964921,0.001,99310.0,99309.0,4e-05]
[1732260966330,0.051289,99310.0,99309.0,4e-05]
[1732260967730,0.001,99310.0,99309.0,4e-05]
[1732260969525,0.051289,99310.0,99309.0,4e-05]
[1732260970834,0.050289,99310.0,99309.0,4e-05]
[1732260971142,0.051289,99310.0,99309.0,4e-05]
[1732260972425,0.050289,99310.0,99309.0,4e-05]
[1732260972630,0.051289,99310.0,99309.0,4e-05]
[1732260972928,0.66388,99310.0,99294.0,0.0101]
[1732260973124,0.050297,99295.0,99294.0,0.0101]
[1732260973332,4e-05,99295.0,99281.0,0.050304]
[1732260973536,0.050298,99293.0,99281.0,0.0201034]
[1732260973728,0.050298,99293.0,99282.0,0.050303]
[1732260974123,0.2385,99294.0,99281.0,0.0201034]
[1732260974534,0.2385,99294.0,99293.0,4e-05]
[1732260974729,0.288797,99294.0,99293.0,4e-05]
[1732260975729,0.289797,99294.0,99293.0,4e-05]
[1732260978135,0.2395,99294.0,99293.0,4e-05]
[1732260979736,0.289797,99294.0,99293.0,4e-05]
[1732260979936,0.001,99294.0,99293.0,4e-05]
[1732260980136,0.001,99294.0,99293.0,0.050338]
[1732260980329,0.3608,99298.0,99296.0,0.050296]
[1732260980729,0.3608,99298.0,99297.0,4e-05]
[1732260982139,0.411095,99298.0,99297.0,4e-05]
[1732260983739,0.412095,99298.0,99297.0,4e-05]
[1732260984325,0.411095,99298.0,99297.0,4e-05]
[1732260984524,0.412095,99298.0,99297.0,4e-05]
[1732260985139,0.411095,99298.0,99297.0,4e-05]
[1732260985336,0.412095,99298.0,99297.0,4e-05]
[1732260986728,0.411095,99298.0,99297.0,4e-05]
[1732260986941,0.412095,99298.0,99297.0,4e-05]
[1732260991641,0.050305,99278.0,99277.0,0.0101]
[1732260991834,0.050305,99278.0,99256.0,0.0683]
[1732260991835,0.411105,99278.0,99261.0,0.0101]
[1732260992038,0.050307,99275.0,99263.0,0.050312]
[1732260992236,0.2307,99277.0,99258.0,0.00504404]
[1732260992436,0.05031,99268.0,99263.0,0.02010582]
[1732260992631,0.2307,99277.0,99263.0,0.02010582]
[1732260992840,0.3608,99269.0,99263.0,0.02010582]
[1732260993037,0.050311,99267.0,99263.0,0.02010582]
[1732260993239,0.3608,99269.0,99263.0,0.02010582]
[1732260993453,0.050312,99264.0,99263.0,0.02010582]
[1732260995544,0.36088,99278.0,99272.0,0.050308]
[1732260995744,8e-05,99278.0,99268.0,0.12642205]
[1732260995947,8e-05,99278.0,99269.0,0.1098]
[1732260996139,8e-05,99278.0,99275.0,0.050306]
[1732260996536,8e-05,99278.0,99277.0,0.050306]
[1732260996742,0.00108,99278.0,99277.0,0.050306]
[1732260996939,0.00108,99278.0,99277.0,0.352506]
[1732260999946,8e-05,99278.0,99277.0,0.352506]
[1732261000147,0.00108,99278.0,99277.0,0.352506]
[1732261000745,8e-05,99278.0,99277.0,0.352506]
[1732261000956,0.00108,99278.0,99277.0,0.459986]
[1732261003040,8e-05,99278.0,99277.0,0.459986]
[1732261003242,0.00108,99278.0,99277.0,0.459986]
[1732261003438,0.3608,99290.0,99277.0,0.459986]
[1732261003439,0.3608,99290.0,99289.0,0.0503]
[1732261004461,0.3608,99290.0,99289.0,0.05034]
[1732261005157,0.1551,99296.0,99292.0,0.050298]
[1732261005752,0.1551,99296.0,99295.0,4e-05]
[1732261006751,0.205396,99296.0,99295.0,4e-05]
[1732261007161,0.1551,99296.0,99295.0,4e-05]
[1732261007749,0.205396,99296.0,99295.0,4e-05]
[1732261012958,0.1551,99296.0,99295.0,4e-05]
[1732261013258,0.1551,99296.0,99295.0,0.050337]
[1732261013458,0.1551,99296.0,99295.0,4e-05]
[1732261015565,0.205396,99296.0,99295.0,4e-05]
[1732261016566,0.1551,99296.0,99295.0,4e-05]
[1732261021055,0.205396,99296.0,99295.0,4e-05]
[1732261023476,0.050304,99280.0,99279.0,0.0101]
[1732261023665,0.050307,99275.0,99271.0,0.1022]
[1732261023961,0.1608,99274.0,99271.0,0.1022]
[1732261024970,0.1608,99274.0,99266.0,0.1022]
[1732261025675,4e-05,99267.0,99266.0,0.1022]
[1732261026072,4e-05,99267.0,99266.0,0.454711]
[1732261029673,4e-05,99267.0,99266.0,0.1022]
[1732261030072,4e-05,99267.0,99264.0,0.3608]
[1732261030377,0.050312,99264.0,99251.0,0.3608]
[1732261030676,0.12642205,99261.0,99251.0,0.3608]
[1732261030879,4e-05,99252.0,99251.0,0.3608]
[1732261031564,0.050321,99247.0,99235.0,0.0101]
[1732261031770,0.1563,99246.0,99237.0,0.00500947]
[1732261031975,4e-05,99238.0,99232.0,0.3608]
[1732261032178,4e-05,99238.0,99237.0,0.050326]
[1732261032473,0.1563,99246.0,99232.0,0.36570691]
[1732261032474,0.1563,99246.0,99233.0,0.1022]
[1732261032670,0.1563,99246.0,99241.0,0.050324]
[1732261032879,0.1563,99246.0,99245.0,4e-05]
[1732261033569,0.001,99252.0,99251.0,0.050319]
[1732261033777,0.001,99252.0,99251.0,0.002]
[1732261034077,0.0804,99256.0,99251.0,0.00204]
[1732261034477,0.0804,99256.0,99255.0,4e-05]
[1732261035273,0.130716,99256.0,99255.0,4e-05]
[1732261036271,0.050323,99244.0,99239.0,0.0101]
[1732261036481,0.3608,99243.0,99237.0,0.02010826]
[1732261036677,7.999e-05,99240.0,99237.0,0.02010826]
[1732261036873,0.3608,99238.0,99224.0,0.3709]
[1732261037078,0.0791,99237.0,99224.0,0.3709]
[1732261037276,7.999e-05,99225.0,99224.0,0.3709]
[1732261037479,7.999e-05,99225.0,99224.0,0.411133]
[1732261038378,0.00107999,99225.0,99224.0,0.413133]
[1732261038581,0.00107999,99225.0,99224.0,0.510333]
[1732261040087,0.00207999,99225.0,99224.0,0.511333]
[1732261040977,0.00207999,99225.0,99224.0,0.53144991]
[1732261041179,1e-08,99225.0,99224.0,0.83380991]
[1732261041587,1e-08,99225.0,99224.0,1.13380991]
[1732261041792,7.999e-05,99240.0,99224.0,1.08347691]
[1732261041985,7.999e-05,99240.0,99239.0,0.3608]
[1732261042185,7.999e-05,99240.0,99239.0,0.36084]
[1732261042378,7.999e-05,99240.0,99239.0,4e-05]
[1732261042884,7.999e-05,99240.0,99239.0,0.050365]
[1732261043088,7.999e-05,99240.0,99239.0,4e-05]
[1732261043586,7.999e-05,99240.0,99239.0,0.051365]
[1732261043887,7.999e-05,99240.0,99239.0,0.353645]
[1732261044783,7.999e-05,99240.0,99239.0,0.354645]
[1732261044987,0.0047,99260.0,99239.0,0.354645]
[1732261044988,0.0047,99260.0,99239.0,0.30204]
[1732261045187,4e-05,99280.0,99260.0,0.050314]
[1732261045188,0.0023,99263.0,99260.0,0.050314]
[1732261045389,0.0744,99266.0,99261.0,0.050314]
[1732261045588,0.0744,99266.0,99257.0,7.999e-05]
[1732261045794,0.0744,99266.0,99262.0,0.050313]
[1732261046006,0.00474,99280.0,99257.0,7.999e-05]
[1732261046007,0.00474,99280.0,99277.0,0.050306]
[1732261046178,0.3608,99294.0,99279.0,0.3608]
[1732261046493,0.050299,99290.0,99279.0,0.36087999]
[1732261046985,0.3608,99294.0,99279.0,0.36087999]
[1732261047192,0.050301,99286.0,99279.0,0.36087999]
[1732261047582,0.050302,99284.0,99279.0,0.3608]
[1732261047791,0.3608,99294.0,99279.0,0.3608]
[1732261047988,0.0503,99289.0,99279.0,0.3608]
[1732261048293,0.0769,99288.0,99279.0,0.3608]
[1732261048990,0.0769,99288.0,99281.0,0.050304]
[1732261049392,0.0769,99288.0,99282.0,0.050303]
[1732261049582,0.0769,99288.0,99279.0,0.3608]
[1732261049892,0.0769,99288.0,99286.0,0.050301]
[1732261050187,0.0769,99288.0,99279.0,0.3608]
[1732261050491,0.0769,99288.0,99283.0,0.050302]
[1732261052385,0.0769,99288.0,99284.0,0.050302]
[1732261053896,0.0769,99288.0,99283.0,0.0972]
[1732261054491,0.0769,99288.0,99279.0,0.411105]
[1732261054692,0.0769,99288.0,99283.0,0.0972]
[1732261054897,4e-05,99284.0,99279.0,0.3608]
[1732261055288,4e-05,99280.0,99279.0,0.3608]
[1732261060192,4e-05,99280.0,99279.0,0.411105]
[1732261064492,4e-05,99280.0,99279.0,0.508305]
[1732261065295,4e-05,99280.0,99279.0,0.411105]
[1732261066595,0.03526534,99300.0,99299.0,0.146335]
[1732261067101,0.03526534,99300.0,99299.0,0.14653499]
[1732261067296,0.03526534,99300.0,99299.0,0.05049499]
[1732261067496,0.03526534,99300.0,99299.0,0.09623999]
[1732261068190,0.03526534,99300.0,99299.0,0.00019999]
[1732261068390,0.03526534,99300.0,99279.0,0.055004]
[1732261068391,0.03526534,99300.0,99284.0,0.09604]
[1732261068601,0.16168739,99300.0,99284.0,0.09604]
[1732261068792,4e-05,99285.0,99284.0,0.09604]
[1732261068999,4e-05,99285.0,99284.0,0.146342]
[1732261070093,4e-05,99285.0,99284.0,0.050302]
[1732261070293,4e-05,99285.0,99284.0,0.448462]
[1732261070901,4e-05,99285.0,99284.0,0.46856687]
[1732261071601,0.0047,99305.0,99304.0,0.050292]
[1732261071805,0.0047,99325.0,99304.0,0.096]
[1732261072100,0.0047,99325.0,99304.0,0.09604]
[1732261072299,0.050286,99316.0,99304.0,0.09604]
[1732261072804,0.12642205,99320.0,99304.0,4e-05]
[1732261072990,0.05029,99309.0,99304.0,4e-05]
[1732261073702,0.050292,99305.0,99304.0,4e-05]
[1732261073904,0.12642205,99320.0,99304.0,4e-05]
[1732261074092,0.050292,99305.0,99304.0,4e-05]
[1732261074300,0.12642205,99320.0,99304.0,4e-05]
[1732261074493,0.126791,99306.0,99304.0,4e-05]
[1732261074800,0.1562,99305.0,99304.0,4e-05]
[1732261075799,0.206492,99305.0,99304.0,4e-05]
[1732261076017,0.567292,99305.0,99304.0,4e-05]
[1732261076301,0.517,99305.0,99304.0,4e-05]
[1732261077512,0.567292,99305.0,99304.0,4e-05]
[1732261079706,0.1562,99305.0,99304.0,4e-05]
[1732261080299,0.206492,99305.0,99304.0,4e-05]
[1732261081211,0.1562,99305.0,99304.0,4e-05]
[1732261087211,0.206492,99305.0,99304.0,4e-05]
[1732261087807,0.1562,99305.0,99304.0,4e-05]
[1732261089709,0.08,99305.0,99304.0,4e-05]
[1732261098015,0.130292,99305.0,99304.0,4e-05]
[1732261098217,0.08,99305.0,99304.0,4e-05]
[1732261099314,0.08,99305.0,99304.0,0.02014199]
[1732261104216,0.3608,99312.0,99304.0,0.02014199]
[1732261108121,0.3608,99312.0,99307.0,0.05029]
[1732261108320,0.3608,99312.0,99305.0,0.09592]
[1732261108517,0.3608,99312.0,99305.0,0.146211]
[1732261108719,4e-05,99306.0,99305.0,0.09592]
[1732261108921,4e-05,99306.0,99305.0,0.146212]
[1732261109223,4e-05,99306.0,99305.0,0.09592]
[1732261109412,0.3608,99312.0,99305.0,0.09592]
[1732261109617,0.3608,99312.0,99305.0,0.146211]
[1732261110014,0.3608,99312.0,99306.0,0.09592]
[1732261110517,0.3608,99312.0,99304.0,0.02014199]
[1732261110719,0.3608,99312.0,99305.0,0.09592]
[1732261111316,0.3608,99312.0,99305.0,0.146211]
[1732261111630,0.3608,99312.0,99305.0,0.1512684]
[1732261111925,0.3608,99312.0,99305.0,0.1009774]
[1732261113224,0.3608,99312.0,99306.0,0.09592]
[1732261114025,0.3608,99312.0,99306.0,0.10085567]
[1732261114827,0.3608,99312.0,99308.0,0.05029]
[1732261115125,0.3608,99312.0,99306.0,0.10085567]
[1732261117727,0.3608,99312.0,99306.0,0.15114667]
[1732261118130,0.3608,99312.0,99306.0,0.09592]
[1732261118433,0.3608,99312.0,99308.0,0.05029]
[1732261118829,0.3608,99312.0,99306.0,0.10085316]
[1732261119035,0.3608,99312.0,99307.0,0.05029]
[1732261119529,0.3608,99312.0,99306.0,0.10085316]
[1732261119931,0.3608,99312.0,99306.0,0.00493316]
[1732261120123,0.3608,99312.0,99309.0,0.050289]
[1732261120325,0.3608,99312.0,99309.0,0.10082402]
[1732261120527,0.3608,99328.0,99312.0,0.050288]
[1732261120730,0.04823864,99333.0,99319.0,0.3608]
[1732261120929,0.1553,99327.0,99320.0,0.08289905]
[1732261121128,0.0819,99326.0,99323.0,0.050282]
[1732261121333,0.0819,99326.0,99320.0,0.08289905]
[1732261121740,4e-05,99321.0,99320.0,0.13318305]
[1732261122130,4e-05,99321.0,99320.0,0.0201005]
[1732261122330,4e-05,99321.0,99320.0,0.0703845]
[1732261122632,4e-05,99321.0,99320.0,0.0201005]
[1732261122931,4e-05,99321.0,99320.0,0.0703845]
[1732261123140,4e-05,99321.0,99320.0,0.0201005]
[1732261125339,4e-05,99321.0,99320.0,0.1159005]
[1732261128739,0.04823864,99333.0,99320.0,0.1159005]
[1732261128946,0.04823864,99333.0,99323.0,0.1262653]
[1732261129238,0.04823864,99333.0,99323.0,0.13128875]
[1732261131247,0.04823864,99333.0,99323.0,0.1262653]
[1732261131642,0.04823864,99333.0,99323.0,0.13139527]
[1732261131836,0.09023676,99337.0,99323.0,0.5525306]
[1732261132043,0.06988791,99337.0,99323.0,0.55761987]
[1732261132237,0.06988791,99337.0,99336.0,4e-05]
[1732261132439,0.06588791,99337.0,99336.0,0.10098354]
[1732261133843,0.41820291,99337.0,99336.0,0.00518354]
[1732261134049,0.050276,99336.0,99335.0,0.0958]
[1732261134248,0.713116,99336.0,99335.0,0.10069901]
[1732261134437,0.71319601,99336.0,99335.0,0.00489901]
[1732261134641,0.71319601,99336.0,99332.0,0.02009646]
[1732261134841,0.30204,99333.0,99332.0,0.02009646]
[1732261135041,0.30212001,99333.0,99332.0,0.02009646]
[1732261138041,0.66292001,99333.0,99332.0,0.02009646]
[1732261139452,0.02098791,99337.0,99332.0,0.62209646]
[1732261139648,0.3608,99352.0,99343.0,0.35153312]
[1732261139840,0.3608,99352.0,99343.0,0.00510494]
[1732261140040,0.3608,99352.0,99344.0,0.0958]
[1732261140247,0.3608,99352.0,99344.0,0.39776]
[1732261140443,0.3608,99352.0,99344.0,0.0958]
[1732261141050,0.3608,99352.0,99343.0,0.00497481]
[1732261141251,0.3608,99352.0,99336.0,4e-05]
[1732261141252,0.3608,99344.0,99341.0,0.0958]
[1732261141446,0.36084,99344.0,99341.0,0.0958]
[1732261141846,0.10963722,99344.0,99341.0,0.0958]
[1732261142156,0.10963722,99344.0,99343.0,0.02009622]
[1732261142453,4e-05,99344.0,99343.0,0.02009622]
[1732261143351,0.050312,99344.0,99342.0,0.00496477]
[1732261143559,0.050312,99344.0,99333.0,0.0958]
[1732261143560,0.050277,99334.0,99333.0,0.0958]
[1732261143746,0.050277,99334.0,99325.0,0.0958]
[1732261143946,0.050317,99334.0,99325.0,0.0958]
[1732261144145,4e-05,99333.0,99320.0,0.00511901]
[1732261144352,4e-05,99333.0,99316.0,0.02009646]
[1732261144556,0.050283,99322.0,99316.0,0.11589646]
[1732261144858,0.3608,99327.0,99316.0,0.11589646]
[1732261144859,4e-05,99317.0,99316.0,0.11589646]
[1732261145048,4e-05,99317.0,99316.0,0.02009646]
[1732261147255,4e-05,99317.0,99300.0,0.02009646]
[1732261147447,0.3608,99308.0,99300.0,0.02009646]
[1732261147646,4e-05,99301.0,99300.0,0.02009646]
[1732261148246,0.050334,99301.0,99300.0,0.02009646]
[1732261148449,0.050334,99301.0,99280.0,0.1285653]
[1732261148450,0.0503,99288.0,99280.0,0.0023]
[1732261148659,0.050302,99285.0,99275.0,0.0958]
[1732261148857,4e-05,99281.0,99276.0,0.0958]
[1732261149156,0.3608,99288.0,99280.0,0.02009649]
[1732261149357,0.050304,99281.0,99280.0,0.02009649]
[1732261149660,0.3608,99281.0,99265.0,0.00511053]
[1732261149954,0.3608,99281.0,99260.0,0.5834653]
[1732261150158,0.050306,99277.0,99260.0,0.58792007]
[1732261150354,4e-05,99261.0,99260.0,0.58792007]
[1732261150561,4e-05,99261.0,99260.0,0.46165477]
[1732261150857,4e-05,99261.0,99260.0,0.02515126]
[1732261151071,0.050354,99261.0,99260.0,0.02009649]
[1732261151355,0.08,99276.0,99241.0,0.0023]
[1732261151356,0.3608,99275.0,99258.0,0.02010885]
[1732261151561,1.5027,99301.0,99265.0,0.1262653]
[1732261151562,0.3608,99288.0,99265.0,0.1262653]
[1732261151748,0.3608,99288.0,99267.0,0.3608]
[1732261152452,0.204095,99300.0,99278.0,0.1262653]
[1732261152656,0.204095,99300.0,99275.0,0.3608]
[1732261152657,0.12576003,99300.0,99290.0,0.1262653]
[1732261152852,0.0792,99299.0,99290.0,0.1262653]
[1732261153059,0.0792,99299.0,99297.0,0.3608]
[1732261153253,0.0792,99299.0,99297.0,0.36592524]
[1732261154047,0.02010885,99354.0,99298.0,0.3608]
[1732261154252,0.41107,99348.0,99325.0,0.1262653]
[1732261154459,0.3608,99338.0,99326.0,0.09584]
[1732261154654,0.3608,99337.0,99326.0,0.09584]
[1732261155651,0.0792,99355.0,99326.0,0.09584]
[1732261155652,0.050268,99352.0,99330.0,0.3608]
[1732261155852,0.050269,99351.0,99330.0,0.3608]
[1732261156057,0.3608,99348.0,99326.0,0.09584]
[1732261156556,4e-05,99327.0,99326.0,0.09584]
[1732261157563,4e-05,99327.0,99326.0,0.11594284]
[1732261158751,4e-05,99327.0,99326.0,0.02010284]
[1732261158955,4e-05,99327.0,99326.0,0.12118284]
[1732261162451,4e-05,99327.0,99326.0,0.02010284]
[1732261164764,0.76192,99327.0,99290.0,0.0051]
[1732261164963,0.1262653,99300.0,99290.0,0.050299]
[1732261165164,0.08,99299.0,99285.0,0.050301]
[1732261165563,4e-05,99286.0,99283.0,0.02009719]
[1732261165964,4e-05,99284.0,99283.0,0.02009719]
[1732261167764,0.411142,99284.0,99283.0,0.02009719]
[1732261168268,0.411142,99284.0,99267.0,0.02009719]
[1732261168269,0.050304,99281.0,99267.0,0.02009719]
[1732261168467,0.36084,99284.0,99268.0,0.05031]
[1732261168666,0.3608,99284.0,99268.0,0.05031]
[1732261168969,0.411102,99284.0,99283.0,4e-05]
[1732261169268,0.3608,99284.0,99283.0,4e-05]
[1732261169768,4e-05,99286.0,99283.0,4e-05]
[1732261170169,4e-05,99286.0,99285.0,4e-05]
[1732261182271,4e-05,99286.0,99285.0,0.156902]
[1732261182475,0.0148,99307.0,99285.0,0.7674]
[1732261182773,0.0101,99313.0,99306.0,4e-05]
[1732261182963,0.1262653,99320.0,99306.0,4e-05]
[1732261183163,0.1262653,99320.0,99302.0,0.050293]
[1732261183164,0.205583,99322.0,99312.0,4e-05]
[1732261183373,0.1765493,99320.0,99319.0,4e-05]
[1732261183677,0.1553,99322.0,99302.0,0.3608]
[1732261183872,0.1553,99322.0,99285.0,0.10926]
[1732261183873,0.3608,99303.0,99292.0,0.0023]
[1732261184172,0.1262653,99300.0,99281.0,0.3608]
[1732261184367,0.050333,99303.0,99288.0,0.0503]
[1732261184569,0.050333,99303.0,99290.0,0.050299]
[1732261184868,0.050333,99303.0,99302.0,4e-05]
[1732261185069,0.36084,99303.0,99302.0,4e-05]
[1732261185270,0.050333,99303.0,99302.0,4e-05]
[1732261185773,4e-05,99303.0,99302.0,0.050333]
[1732261185965,4e-05,99303.0,99302.0,4e-05]
[1732261186169,4e-05,99303.0,99302.0,0.050333]
[1732261186571,4e-05,99303.0,99302.0,4e-05]
[1732261186877,4e-05,99303.0,99302.0,0.050333]
[1732261188071,4e-05,99303.0,99302.0,0.352453]
[1732261188274,0.0749,99321.0,99320.0,0.050284]
[1732261189272,0.0749,99321.0,99320.0,8e-05]
[1732261189779,0.0749,99321.0,99320.0,0.050364]
[1732261189984,0.0749,99321.0,99320.0,8e-05]
[1732261190482,0.3608,99327.0,99321.0,0.050283]
[1732261190686,0.0765,99332.0,99321.0,0.3608]
[1732261190976,0.0765,99332.0,99331.0,8e-05]
[1732261194788,0.126778,99332.0,99331.0,8e-05]
[1732261197576,0.428778,99332.0,99331.0,8e-05]
[1732261197777,0.050284,99319.0,99318.0,0.0200981]
[1732261197982,0.050289,99310.0,99299.0,0.0023]
[1732261198181,0.3608,99319.0,99296.0,0.11904]